[Event "Titled Tuesday Blitz May 9 Late 2023"]
[White "Butti, Enrique"]
[Black "Chabris, Christopher"]
[WhiteFideId "3700470"]
[BlackFideId "2005263"]
[WhiteElo "2080"]
[BlackElo "2347"]
[Result "1-0"]
[Round "05"]
[TimeControl "180+2"]
[Date "2023.05.09"]
[WhiteClock "0:00:13"]
[BlackClock "0:00:00"]

1. d4 {[%clk 0:03:00]}  Nf6 {[%clk 0:02:57]} 2. Nf3 {[%clk 0:02:58]}  e6 {[%clk 0:02:57]} 3. e3 {[%clk 0:02:55]}  c5 {[%clk 0:02:57]} 4. Bd3 {[%clk 0:02:54]}  d5 {[%clk 0:02:56]} 5. b3 {[%clk 0:02:53]}  Nc6 {[%clk 0:02:55]} 6. O-O {[%clk 0:02:51]}  Be7 {[%clk 0:02:55]} 7. a3 {[%clk 0:02:50]}  O-O {[%clk 0:02:55]} 8. Bb2 {[%clk 0:02:50]}  a6 {[%clk 0:02:54]} 9. c4 {[%clk 0:02:49]}  dxc4 {[%clk 0:02:53]} 10. bxc4 {[%clk 0:02:48]}  b6 {[%clk 0:02:43]} 11. Nbd2 {[%clk 0:02:47]}  Bb7 {[%clk 0:02:43]} 12. Qe2 {[%clk 0:02:41]}  h6 {[%clk 0:02:30]} 13. Rfd1 {[%clk 0:02:40]}  Qc7 {[%clk 0:02:29]} 14. Ne5 {[%clk 0:02:32]}  Rad8 {[%clk 0:02:25]} 15. Ndf3 {[%clk 0:02:00]}  Bd6 {[%clk 0:02:24]} 16. Bc2 {[%clk 0:01:53]}  Nd7 {[%clk 0:01:57]} 17. Nxd7 {[%clk 0:01:50]}  Qxd7 {[%clk 0:01:56]} 18. d5 {[%clk 0:01:49]}  exd5 {[%clk 0:01:43]} 19. cxd5 {[%clk 0:01:49]}  Na5 {[%clk 0:01:37]} 20. e4 {[%clk 0:01:48]}  Bb8 {[%clk 0:01:27]} 21. Ne5 {[%clk 0:01:30]}  Bxe5 {[%clk 0:01:17]} 22. Bxe5 {[%clk 0:01:29]}  Qe7 {[%clk 0:01:17]} 23. Bc3 {[%clk 0:01:09]}  Bxd5 {[%clk 0:01:09]} 24. Qg4 {[%clk 0:01:08]}  f5 {[%clk 0:01:02]} 25. exf5 {[%clk 0:01:07]}  Qf7 {[%clk 0:00:26]} 26. f6 {[%clk 0:01:00]}  g5 {[%clk 0:00:26]} 27. h4 {[%clk 0:00:51]}  Be6 {[%clk 0:00:25]} 28. Bf5 {[%clk 0:00:50]}  Bxf5 {[%clk 0:00:22]} 29. Qxf5 {[%clk 0:00:49]}  Qh7 {[%clk 0:00:19]} 30. Qe6+ {[%clk 0:00:40]}  Qf7 {[%clk 0:00:19]} 31. Qe4 {[%clk 0:00:37]}  Nb3 {[%clk 0:00:17]} 32. hxg5 {[%clk 0:00:34]}  hxg5 {[%clk 0:00:16]} 33. Qf5 {[%clk 0:00:31]}  Nxa1 {[%clk 0:00:13]} 34. Qxg5+ {[%clk 0:00:29]}  Kh8 {[%clk 0:00:13]} 35. Qh6+ {[%clk 0:00:26]}  Kg8 {[%clk 0:00:12]} 36. Rxa1 {[%clk 0:00:25]}  Rd5 {[%clk 0:00:09]} 37. Re1 {[%clk 0:00:22]}  Rh5 {[%clk 0:00:09]} 38. Qf4 {[%clk 0:00:21]}  Qg6 {[%clk 0:00:07]} 39. Re7 {[%clk 0:00:19]}  Rf7 {[%clk 0:00:06]} 40. Re8+ {[%clk 0:00:18]}  Kh7 {[%clk 0:00:05]} 41. Qg3 {[%clk 0:00:15]}  Qb1+ {[%clk 0:00:02]} 42. Be1 {[%clk 0:00:14]}  Qg6 {[%clk 0:00:00]} 43. Qb8 {[%clk 0:00:13]} 1-0


[Site "https://www.chess.com"]

[Event "Titled Tuesday Blitz May 9 Late 2023"]
[White "Al-Saffar, Araz Basim Mohammed S"]
[Black "KSho99"]
[WhiteFideId "4801040"]
[WhiteElo "2304"]
[BlackElo "2146"]
[Result "1-0"]
[Round "05"]
[TimeControl "180+2"]
[Date "2023.05.09"]
[WhiteClock "0:01:14"]
[BlackClock "0:00:00"]

1. e4 {[%clk 0:02:59]}  c6 {[%clk 0:02:58]} 2. d4 {[%clk 0:02:58]}  d5 {[%clk 0:02:58]} 3. exd5 {[%clk 0:02:58]}  cxd5 {[%clk 0:02:57]} 4. Nf3 {[%clk 0:02:58]}  Nf6 {[%clk 0:02:56]} 5. Ne5 {[%clk 0:02:58]}  a6 {[%clk 0:02:40]} 6. Bd3 {[%clk 0:02:58]}  Nc6 {[%clk 0:02:30]} 7. Nxc6 {[%clk 0:02:57]}  bxc6 {[%clk 0:02:30]} 8. O-O {[%clk 0:02:57]}  Bg4 {[%clk 0:02:22]} 9. f3 {[%clk 0:02:49]}  Bh5 {[%clk 0:02:21]} 10. b4 {[%clk 0:02:45]}  e6 {[%clk 0:02:15]} 11. a3 {[%clk 0:02:39]}  Bg6 {[%clk 0:01:57]} 12. c3 {[%clk 0:02:25]}  Bd6 {[%clk 0:01:52]} 13. Bxg6 {[%clk 0:01:52]}  hxg6 {[%clk 0:01:44]} 14. g3 {[%clk 0:01:52]}  Qc7 {[%clk 0:00:57]} 15. Kg2 {[%clk 0:01:52]}  Kd7 {[%clk 0:00:47]} 16. Nd2 {[%clk 0:01:50]}  Rxh2+ {[%clk 0:00:25]} 17. Kxh2 {[%clk 0:01:49]}  Bxg3+ {[%clk 0:00:25]} 18. Kg2 {[%clk 0:01:46]}  Nh5 {[%clk 0:00:24]} 19. Rh1 {[%clk 0:01:30]}  Bh4 {[%clk 0:00:05]} 20. Nf1 {[%clk 0:01:29]}  Bf6 {[%clk 0:00:00]} 21. Qe1 {[%clk 0:01:14]} 1-0


[Site "https://www.chess.com"]

[Event "Titled Tuesday Blitz May 9 Late 2023"]
[White "awayceiling"]
[Black "Szente Varga, Fruzsina"]
[BlackFideId "712264"]
[WhiteElo "1314"]
[BlackElo "1994"]
[Result "0-1"]
[Round "05"]
[TimeControl "180+2"]
[Date "2023.05.09"]
[WhiteClock "0:01:46"]
[BlackClock "0:02:24"]

1. e4 {[%clk 0:03:00]}  Nf6 {[%clk 0:02:48]} 2. e5 {[%clk 0:03:00]}  Nd5 {[%clk 0:02:48]} 3. c4 {[%clk 0:03:00]}  Nb6 {[%clk 0:02:48]} 4. d4 {[%clk 0:02:59]}  d6 {[%clk 0:02:48]} 5. exd6 {[%clk 0:02:55]}  exd6 {[%clk 0:02:49]} 6. Nf3 {[%clk 0:02:55]}  Be7 {[%clk 0:02:50]} 7. Bd3 {[%clk 0:02:53]}  O-O {[%clk 0:02:50]} 8. O-O {[%clk 0:02:52]}  Bf6 {[%clk 0:02:50]} 9. Be3 {[%clk 0:02:47]}  Bg4 {[%clk 0:02:50]} 10. Nc3 {[%clk 0:02:45]}  Nc6 {[%clk 0:02:50]} 11. d5 {[%clk 0:02:37]}  Ne5 {[%clk 0:02:49]} 12. h3 {[%clk 0:02:33]}  Nxf3+ {[%clk 0:02:42]} 13. gxf3 {[%clk 0:02:27]}  Bxh3 {[%clk 0:02:42]} 14. Re1 {[%clk 0:02:28]}  Bg5 {[%clk 0:02:31]} 15. Kh2 {[%clk 0:02:24]}  Bxe3 {[%clk 0:02:25]} 16. fxe3 {[%clk 0:01:46]}  Qh4 {[%clk 0:02:24]} 0-1


[Site "https://www.chess.com"]

[Event "Titled Tuesday Blitz May 9 Late 2023"]
[White "Hartikainen, Jarmo"]
[Black "Bibasa, Bob"]
[WhiteFideId "503134"]
[BlackFideId "10000240"]
[WhiteElo "2077"]
[BlackElo "2093"]
[Result "1-0"]
[Round "05"]
[TimeControl "180+2"]
[Date "2023.05.09"]
[WhiteClock "0:00:15"]
[BlackClock "0:01:52"]

1. e4 {[%clk 0:03:00]}  c5 {[%clk 0:03:00]} 2. c3 {[%clk 0:03:00]}  Nf6 {[%clk 0:03:00]} 3. e5 {[%clk 0:03:01]}  Nd5 {[%clk 0:03:00]} 4. d4 {[%clk 0:03:01]}  cxd4 {[%clk 0:03:01]} 5. Nf3 {[%clk 0:03:01]}  Nc6 {[%clk 0:03:01]} 6. cxd4 {[%clk 0:03:01]}  d6 {[%clk 0:03:01]} 7. Nc3 {[%clk 0:03:02]}  Nxc3 {[%clk 0:02:58]} 8. bxc3 {[%clk 0:03:01]}  dxe5 {[%clk 0:02:59]} 9. d5 {[%clk 0:02:57]}  e4 {[%clk 0:02:51]} 10. dxc6 {[%clk 0:02:52]}  exf3 {[%clk 0:02:51]} 11. Bb5 {[%clk 0:02:28]}  Qxd1+ {[%clk 0:02:50]} 12. Kxd1 {[%clk 0:02:29]}  Kd8 {[%clk 0:02:50]} 13. Bf4 {[%clk 0:02:20]}  e5 {[%clk 0:02:36]} 14. Bxe5 {[%clk 0:02:16]}  fxg2 {[%clk 0:02:36]} 15. Re1 {[%clk 0:02:04]}  Bg4+ {[%clk 0:02:34]} 16. Kc2 {[%clk 0:01:56]}  bxc6 {[%clk 0:02:33]} 17. Bxc6 {[%clk 0:01:25]}  Rc8 {[%clk 0:02:33]} 18. Bxg2 {[%clk 0:01:21]}  f6 {[%clk 0:02:32]} 19. Bd4 {[%clk 0:01:11]}  Bc5 {[%clk 0:02:32]} 20. Bxc5 {[%clk 0:00:27]}  Rxc5 {[%clk 0:02:31]} 21. Be4 {[%clk 0:00:27]}  Kc7 {[%clk 0:02:21]} 22. Rab1 {[%clk 0:00:22]}  Rb8 {[%clk 0:02:12]} 23. Rxb8 {[%clk 0:00:20]}  Kxb8 {[%clk 0:02:12]} 24. Rb1+ {[%clk 0:00:21]}  Kc7 {[%clk 0:02:10]} 25. Rb7+ {[%clk 0:00:20]}  Kd6 {[%clk 0:02:10]} 26. Rxg7 {[%clk 0:00:19]}  Rh5 {[%clk 0:02:07]} 27. Rxg4 {[%clk 0:00:18]}  f5 {[%clk 0:02:04]} 28. Bxf5 {[%clk 0:00:17]}  Rxf5 {[%clk 0:02:04]} 29. f4 {[%clk 0:00:18]}  Rf7 {[%clk 0:02:02]} 30. Rh4 {[%clk 0:00:17]}  Kd5 {[%clk 0:02:01]} 31. Kd3 {[%clk 0:00:17]}  Kc5 {[%clk 0:01:56]} 32. Rh5+ {[%clk 0:00:17]}  Kd6 {[%clk 0:01:56]} 33. Ke4 {[%clk 0:00:17]}  Kc6 {[%clk 0:01:56]} 34. f5 {[%clk 0:00:17]}  Re7+ {[%clk 0:01:54]} 35. Kf4 {[%clk 0:00:16]}  Rf7 {[%clk 0:01:53]} 36. Ke5 {[%clk 0:00:16]}  Kd7 {[%clk 0:01:52]} 37. f6 {[%clk 0:00:16]}  Kc6 {[%clk 0:01:52]} 38. Rg5 {[%clk 0:00:16]}  Kd7 {[%clk 0:01:52]} 39. Rg7 {[%clk 0:00:16]}  Ke8 {[%clk 0:01:52]} 40. Rxf7 {[%clk 0:00:16]}  Kxf7 {[%clk 0:01:52]} 41. c4 {[%clk 0:00:15]} 1-0


[Site "https://www.chess.com"]

[Event "Titled Tuesday Blitz May 9 Late 2023"]
[White "Curtis, John"]
[Black "Napoli, Nicolo"]
[WhiteFideId "3200256"]
[BlackFideId "813702"]
[WhiteElo "2203"]
[BlackElo "2308"]
[Result "1-0"]
[Round "05"]
[TimeControl "180+2"]
[Date "2023.05.09"]
[WhiteClock "0:01:32"]
[BlackClock "0:00:03"]

1. d4 {[%clk 0:03:00]}  d5 {[%clk 0:02:55]} 2. c4 {[%clk 0:02:58]}  c6 {[%clk 0:02:54]} 3. Nc3 {[%clk 0:02:56]}  Nf6 {[%clk 0:02:49]} 4. Nf3 {[%clk 0:02:55]}  Bf5 {[%clk 0:02:44]} 5. Qb3 {[%clk 0:02:54]}  Qb6 {[%clk 0:02:23]} 6. c5 {[%clk 0:02:51]}  Qxb3 {[%clk 0:02:13]} 7. axb3 {[%clk 0:02:51]}  Na6 {[%clk 0:02:12]} 8. Na2 {[%clk 0:02:34]}  Bc2 {[%clk 0:01:50]} 9. Bf4 {[%clk 0:02:26]}  Bxb3 {[%clk 0:01:34]} 10. e3 {[%clk 0:02:27]}  Bc4 {[%clk 0:00:48]} 11. Bxc4 {[%clk 0:02:20]}  dxc4 {[%clk 0:00:49]} 12. Ne5 {[%clk 0:02:21]}  Nd5 {[%clk 0:00:41]} 13. Nxc4 {[%clk 0:02:17]}  Nxf4 {[%clk 0:00:37]} 14. exf4 {[%clk 0:02:17]}  O-O-O {[%clk 0:00:35]} 15. O-O-O {[%clk 0:02:12]}  g6 {[%clk 0:00:34]} 16. Ne5 {[%clk 0:02:07]}  Rg8 {[%clk 0:00:04]} 17. Nxf7 {[%clk 0:02:05]}  Rd7 {[%clk 0:00:05]} 18. Ne5 {[%clk 0:02:05]}  Rd8 {[%clk 0:00:04]} 19. Rd2 {[%clk 0:01:54]}  Bh6 {[%clk 0:00:03]} 20. g3 {[%clk 0:01:53]}  g5 {[%clk 0:00:04]} 21. fxg5 {[%clk 0:01:54]}  Bxg5 {[%clk 0:00:04]} 22. f4 {[%clk 0:01:54]}  Bf6 {[%clk 0:00:04]} 23. Re1 {[%clk 0:01:52]}  Nc7 {[%clk 0:00:03]} 24. Nc3 {[%clk 0:01:48]}  Nd5 {[%clk 0:00:03]} 25. Nxd5 {[%clk 0:01:48]}  Rxd5 {[%clk 0:00:04]} 26. Kc2 {[%clk 0:01:48]}  Rgd8 {[%clk 0:00:04]} 27. Kc3 {[%clk 0:01:48]}  Kc7 {[%clk 0:00:02]} 28. b4 {[%clk 0:01:48]}  b6 {[%clk 0:00:02]} 29. Kc4 {[%clk 0:01:47]}  bxc5 {[%clk 0:00:01]} 30. bxc5 {[%clk 0:01:48]}  Rb8 {[%clk 0:00:02]} 31. Ra1 {[%clk 0:01:43]}  Rb7 {[%clk 0:00:01]} 32. Rda2 {[%clk 0:01:42]}  Kb8 {[%clk 0:00:02]} 33. Nxc6+ {[%clk 0:01:33]}  Kc7 {[%clk 0:00:01]} 34. Ne5 {[%clk 0:01:33]}  Bxe5 {[%clk 0:00:01]} 35. Kxd5 {[%clk 0:01:33]}  Bf6 {[%clk 0:00:01]} 36. Rxa7 {[%clk 0:01:32]}  Kb8 {[%clk 0:00:01]} 37. Rxb7+ {[%clk 0:01:32]}  Kxb7 {[%clk 0:00:02]} 38. c6+ {[%clk 0:01:33]}  Kc7 {[%clk 0:00:02]} 39. Ra7+ {[%clk 0:01:32]}  Kc8 {[%clk 0:00:03]} 40. Rd7 {[%clk 0:01:31]}  e6+ {[%clk 0:00:01]} 41. Kxe6 {[%clk 0:01:32]}  Bd8 {[%clk 0:00:01]} 42. d5 {[%clk 0:01:32]}  h5 {[%clk 0:00:02]} 43. d6 {[%clk 0:01:32]}  h4 {[%clk 0:00:03]} 44. g4 {[%clk 0:01:33]}  h3 {[%clk 0:00:03]} 45. Rxd8+ {[%clk 0:01:32]}  Kxd8 {[%clk 0:00:03]} 46. g5 {[%clk 0:01:32]}  Ke8 {[%clk 0:00:02]} 47. f5 {[%clk 0:01:31]}  Kd8 {[%clk 0:00:02]} 48. f6 {[%clk 0:01:31]}  Ke8 {[%clk 0:00:02]} 49. g6 {[%clk 0:01:32]}  Kd8 {[%clk 0:00:03]} 50. g7 {[%clk 0:01:32]}  Ke8 {[%clk 0:00:03]} 51. g8=Q# {[%clk 0:01:32]} 1-0


[Site "https://www.chess.com"]

[Event "Titled Tuesday Blitz May 9 Late 2023"]
[White "Manon-og, Ramon Jr."]
[Black "Torres Dominguez, David"]
[WhiteFideId "5200776"]
[BlackFideId "2220857"]
[WhiteElo "2306"]
[BlackElo "1999"]
[Result "0-1"]
[Round "05"]
[TimeControl "180+2"]
[Date "2023.05.09"]
[WhiteClock "0:00:09"]
[BlackClock "0:01:32"]

1. e4 {[%clk 0:03:00]}  Nc6 {[%clk 0:02:56]} 2. Be2 {[%clk 0:02:50]}  e5 {[%clk 0:02:56]} 3. Nf3 {[%clk 0:02:49]}  Nf6 {[%clk 0:02:56]} 4. Bc4 {[%clk 0:02:48]}  Nxe4 {[%clk 0:02:45]} 5. d3 {[%clk 0:02:41]}  Nf6 {[%clk 0:02:37]} 6. Ng5 {[%clk 0:02:40]}  d5 {[%clk 0:02:36]} 7. Bb3 {[%clk 0:02:25]}  Bd6 {[%clk 0:02:33]} 8. O-O {[%clk 0:02:07]}  O-O {[%clk 0:02:33]} 9. Be3 {[%clk 0:02:04]}  h6 {[%clk 0:02:23]} 10. Nf3 {[%clk 0:01:41]}  Bg4 {[%clk 0:02:22]} 11. h3 {[%clk 0:01:36]}  Bh5 {[%clk 0:02:22]} 12. Nbd2 {[%clk 0:01:26]}  d4 {[%clk 0:01:57]} 13. Bxh6 {[%clk 0:01:13]}  gxh6 {[%clk 0:01:57]} 14. Ne4 {[%clk 0:01:08]}  Nxe4 {[%clk 0:01:55]} 15. dxe4 {[%clk 0:01:06]}  Qf6 {[%clk 0:01:48]} 16. c3 {[%clk 0:00:42]}  Bxf3 {[%clk 0:01:46]} 17. Qxf3 {[%clk 0:00:39]}  Qxf3 {[%clk 0:01:46]} 18. gxf3 {[%clk 0:00:30]}  Kg7 {[%clk 0:01:44]} 19. Kh1 {[%clk 0:00:29]}  Kf6 {[%clk 0:01:44]} 20. Rg1 {[%clk 0:00:28]}  Rg8 {[%clk 0:01:44]} 21. Rxg8 {[%clk 0:00:27]}  Rxg8 {[%clk 0:01:42]} 22. Rg1 {[%clk 0:00:27]}  Rxg1+ {[%clk 0:01:42]} 23. Kxg1 {[%clk 0:00:26]}  b5 {[%clk 0:01:42]} 24. Kg2 {[%clk 0:00:25]}  a5 {[%clk 0:01:42]} 25. Bd1 {[%clk 0:00:20]}  dxc3 {[%clk 0:01:40]} 26. Kg3 {[%clk 0:00:21]}  cxb2 {[%clk 0:01:39]} 27. Bc2 {[%clk 0:00:21]}  Nd4 {[%clk 0:01:37]} 28. Bb1 {[%clk 0:00:19]}  Ne2+ {[%clk 0:01:37]} 29. Kg2 {[%clk 0:00:18]}  Nc3 {[%clk 0:01:38]} 30. Kf1 {[%clk 0:00:18]}  Nxb1 {[%clk 0:01:38]} 31. Ke1 {[%clk 0:00:18]}  Na3 {[%clk 0:01:38]} 32. Kf1 {[%clk 0:00:17]}  Bb4 {[%clk 0:01:37]} 33. Kg2 {[%clk 0:00:18]}  Bd2 {[%clk 0:01:36]} 34. Kg3 {[%clk 0:00:19]}  Bf4+ {[%clk 0:01:36]} 35. Kg4 {[%clk 0:00:19]}  b1=Q {[%clk 0:01:35]} 36. Kh5 {[%clk 0:00:09]}  Qg1 {[%clk 0:01:32]} 0-1


[Site "https://www.chess.com"]

[Event "Titled Tuesday Blitz May 9 Late 2023"]
[White "Kostiukov, Alexandr"]
[Black "dorpato"]
[WhiteFideId "14108100"]
[WhiteElo "2202"]
[BlackElo "2012"]
[Result "1-0"]
[Round "05"]
[TimeControl "180+2"]
[Date "2023.05.09"]
[WhiteClock "0:01:03"]
[BlackClock "0:00:00"]

1. g3 {[%clk 0:02:57]}  c5 {[%clk 0:02:59]} 2. Bg2 {[%clk 0:02:57]}  Nc6 {[%clk 0:02:59]} 3. c4 {[%clk 0:02:57]}  g6 {[%clk 0:03:00]} 4. Nf3 {[%clk 0:02:57]}  Bg7 {[%clk 0:03:00]} 5. O-O {[%clk 0:02:57]}  e6 {[%clk 0:03:01]} 6. Nc3 {[%clk 0:02:56]}  Nge7 {[%clk 0:03:01]} 7. d4 {[%clk 0:02:56]}  cxd4 {[%clk 0:03:01]} 8. Nb5 {[%clk 0:02:55]}  d5 {[%clk 0:02:48]} 9. cxd5 {[%clk 0:02:47]}  Nxd5 {[%clk 0:02:43]} 10. Nbxd4 {[%clk 0:02:47]}  Nxd4 {[%clk 0:02:36]} 11. Nxd4 {[%clk 0:02:47]}  O-O {[%clk 0:02:34]} 12. e4 {[%clk 0:02:41]}  Nb6 {[%clk 0:02:28]} 13. Nb5 {[%clk 0:02:38]}  Bd7 {[%clk 0:02:20]} 14. Nc3 {[%clk 0:02:34]}  Bc6 {[%clk 0:02:12]} 15. Qe2 {[%clk 0:02:20]}  Rc8 {[%clk 0:02:06]} 16. Rd1 {[%clk 0:02:17]}  Qe7 {[%clk 0:01:59]} 17. Bf4 {[%clk 0:02:10]}  Qb4 {[%clk 0:01:34]} 18. Bd6 {[%clk 0:02:05]}  Qa5 {[%clk 0:01:20]} 19. Bxf8 {[%clk 0:01:58]}  Bxc3 {[%clk 0:01:18]} 20. Bd6 {[%clk 0:01:28]}  Bxb2 {[%clk 0:01:09]} 21. Qxb2 {[%clk 0:01:26]}  Nc4 {[%clk 0:01:02]} 22. Qf6 {[%clk 0:01:24]}  Nxd6 {[%clk 0:01:00]} 23. Rxd6 {[%clk 0:01:23]}  Qc7 {[%clk 0:00:46]} 24. Rad1 {[%clk 0:01:23]}  Re8 {[%clk 0:00:28]} 25. Rd8 {[%clk 0:01:16]}  Qb6 {[%clk 0:00:15]} 26. e5 {[%clk 0:01:07]}  Qb2 {[%clk 0:00:00]} 27. Bxc6 {[%clk 0:01:03]} 1-0


[Site "https://www.chess.com"]

[Event "Titled Tuesday Blitz May 9 Late 2023"]
[White "James, Stuart"]
[Black "Prohorov, Olexandr"]
[WhiteFideId "7400489"]
[BlackFideId "14105578"]
[WhiteElo "1950"]
[BlackElo "1966"]
[Result "0-1"]
[Round "05"]
[TimeControl "180+2"]
[Date "2023.05.09"]
[WhiteClock "0:00:31"]
[BlackClock "0:01:07"]

1. e4 {[%clk 0:02:49]}  c5 {[%clk 0:03:00]} 2. Nf3 {[%clk 0:02:49]}  e6 {[%clk 0:03:00]} 3. d4 {[%clk 0:02:48]}  cxd4 {[%clk 0:03:01]} 4. Nxd4 {[%clk 0:02:49]}  Qb6 {[%clk 0:03:02]} 5. Be2 {[%clk 0:02:46]}  Bc5 {[%clk 0:03:01]} 6. c3 {[%clk 0:02:43]}  e5 {[%clk 0:03:01]} 7. Be3 {[%clk 0:02:38]}  exd4 {[%clk 0:03:00]} 8. cxd4 {[%clk 0:02:37]}  Bb4+ {[%clk 0:03:01]} 9. Nd2 {[%clk 0:02:35]}  Nf6 {[%clk 0:02:59]} 10. O-O {[%clk 0:02:33]}  O-O {[%clk 0:02:58]} 11. e5 {[%clk 0:02:32]}  Nd5 {[%clk 0:02:56]} 12. Bd3 {[%clk 0:02:30]}  Bxd2 {[%clk 0:02:41]} 13. Qxd2 {[%clk 0:02:29]}  d6 {[%clk 0:02:36]} 14. Bh6 {[%clk 0:02:17]}  gxh6 {[%clk 0:02:13]} 15. Qxh6 {[%clk 0:02:15]}  f5 {[%clk 0:02:13]} 16. exf6 {[%clk 0:01:57]}  Nxf6 {[%clk 0:02:11]} 17. Rac1 {[%clk 0:01:34]}  Nc6 {[%clk 0:02:02]} 18. d5 {[%clk 0:01:33]}  Ne5 {[%clk 0:02:01]} 19. Bxh7+ {[%clk 0:01:20]}  Nxh7 {[%clk 0:01:58]} 20. Rc3 {[%clk 0:01:21]}  Rf7 {[%clk 0:01:22]} 21. Rg3+ {[%clk 0:01:17]}  Kh8 {[%clk 0:01:23]} 22. Rc1 {[%clk 0:00:31]}  Bf5 {[%clk 0:01:07]} 0-1


[Site "https://www.chess.com"]

[Event "Titled Tuesday Blitz May 9 Late 2023"]
[White "Oliveira, Tiago Batista"]
[Black "Vargas, Mauricio"]
[WhiteFideId "2108291"]
[BlackFideId "4404572"]
[WhiteElo "1962"]
[BlackElo "1986"]
[Result "1-0"]
[Round "05"]
[TimeControl "180+2"]
[Date "2023.05.09"]
[WhiteClock "0:00:16"]
[BlackClock "0:00:00"]

1. d4 {[%clk 0:03:00]}  d5 {[%clk 0:02:06]} 2. c4 {[%clk 0:02:52]}  c6 {[%clk 0:02:06]} 3. Nf3 {[%clk 0:02:40]}  e6 {[%clk 0:02:04]} 4. g3 {[%clk 0:02:39]}  Nf6 {[%clk 0:02:03]} 5. Bg2 {[%clk 0:02:25]}  Nbd7 {[%clk 0:01:59]} 6. Nbd2 {[%clk 0:02:24]}  Bd6 {[%clk 0:01:56]} 7. O-O {[%clk 0:02:19]}  O-O {[%clk 0:01:55]} 8. Qc2 {[%clk 0:02:15]}  Re8 {[%clk 0:01:54]} 9. Rd1 {[%clk 0:02:13]}  e5 {[%clk 0:01:54]} 10. dxe5 {[%clk 0:02:13]}  Nxe5 {[%clk 0:01:51]} 11. cxd5 {[%clk 0:02:09]}  Nxd5 {[%clk 0:01:49]} 12. Nxe5 {[%clk 0:01:59]}  Bxe5 {[%clk 0:01:37]} 13. Nf3 {[%clk 0:01:56]}  Bf6 {[%clk 0:01:33]} 14. e4 {[%clk 0:01:53]}  Nb4 {[%clk 0:00:56]} 15. Rxd8 {[%clk 0:01:50]}  Rxd8 {[%clk 0:00:56]} 16. Qe2 {[%clk 0:01:34]}  Nd3 {[%clk 0:00:51]} 17. e5 {[%clk 0:01:29]}  Be7 {[%clk 0:00:49]} 18. Bg5 {[%clk 0:01:19]}  Bxg5 {[%clk 0:00:40]} 19. Nxg5 {[%clk 0:01:18]}  Be6 {[%clk 0:00:39]} 20. Be4 {[%clk 0:01:07]}  Bc4 {[%clk 0:00:38]} 21. Qh5 {[%clk 0:00:52]}  h6 {[%clk 0:00:34]} 22. Bxd3 {[%clk 0:00:48]}  Bxd3 {[%clk 0:00:33]} 23. Qxf7+ {[%clk 0:00:46]}  Kh8 {[%clk 0:00:31]} 24. Ne6 {[%clk 0:00:41]}  Rg8 {[%clk 0:00:24]} 25. Rd1 {[%clk 0:00:36]}  Bh7 {[%clk 0:00:18]} 26. Rd7 {[%clk 0:00:35]}  Rae8 {[%clk 0:00:12]} 27. Rxb7 {[%clk 0:00:25]}  Be4 {[%clk 0:00:08]} 28. Nxg7 {[%clk 0:00:19]}  Bd5 {[%clk 0:00:00]} 29. Qg6 {[%clk 0:00:16]} 1-0


[Site "https://www.chess.com"]

[Event "Titled Tuesday Blitz May 9 Late 2023"]
[White "Carlsen, Magnus"]
[Black "Sargsyan, Shant"]
[WhiteFideId "1503014"]
[BlackFideId "13306766"]
[WhiteElo "2852"]
[BlackElo "2628"]
[Result "1-0"]
[Round "06"]
[TimeControl "180+2"]
[Date "2023.05.09"]
[WhiteClock "0:00:44"]
[BlackClock "0:00:04"]

1. e3 {[%clk 0:02:59]}  g6 {[%clk 0:02:54]} 2. d4 {[%clk 0:02:55]}  Nf6 {[%clk 0:02:54]} 3. c4 {[%clk 0:02:48]}  Bg7 {[%clk 0:02:55]} 4. Nf3 {[%clk 0:02:47]}  O-O {[%clk 0:02:56]} 5. Be2 {[%clk 0:02:47]}  d6 {[%clk 0:02:57]} 6. Nc3 {[%clk 0:02:47]}  Nbd7 {[%clk 0:02:57]} 7. b4 {[%clk 0:02:46]}  e5 {[%clk 0:02:58]} 8. Bb2 {[%clk 0:02:45]}  Re8 {[%clk 0:02:58]} 9. a4 {[%clk 0:02:45]}  a5 {[%clk 0:02:58]} 10. b5 {[%clk 0:02:40]}  exd4 {[%clk 0:02:58]} 11. exd4 {[%clk 0:02:39]}  Nh5 {[%clk 0:02:59]} 12. O-O {[%clk 0:02:33]}  Nf4 {[%clk 0:02:59]} 13. Re1 {[%clk 0:02:34]}  Nxe2+ {[%clk 0:02:59]} 14. Rxe2 {[%clk 0:02:35]}  Nb6 {[%clk 0:02:56]} 15. Rxe8+ {[%clk 0:02:29]}  Qxe8 {[%clk 0:02:56]} 16. Qb3 {[%clk 0:02:29]}  Be6 {[%clk 0:02:52]} 17. Re1 {[%clk 0:02:25]}  Qf8 {[%clk 0:02:14]} 18. d5 {[%clk 0:02:17]}  Bg4 {[%clk 0:02:15]} 19. Ne4 {[%clk 0:02:11]}  Bxf3 {[%clk 0:02:13]} 20. gxf3 {[%clk 0:02:12]}  Nd7 {[%clk 0:02:12]} 21. Bxg7 {[%clk 0:01:51]}  Qxg7 {[%clk 0:02:12]} 22. b6 {[%clk 0:01:52]}  Nxb6 {[%clk 0:01:55]} 23. c5 {[%clk 0:01:52]}  dxc5 {[%clk 0:01:12]} 24. d6 {[%clk 0:01:53]}  c4 {[%clk 0:01:03]} 25. Qb5 {[%clk 0:01:52]}  f5 {[%clk 0:01:03]} 26. Ng5 {[%clk 0:01:38]}  Qd7 {[%clk 0:00:35]} 27. Qxd7 {[%clk 0:01:05]}  Nxd7 {[%clk 0:00:36]} 28. Re7 {[%clk 0:01:06]}  c3 {[%clk 0:00:15]} 29. Rxd7 {[%clk 0:01:05]}  c6 {[%clk 0:00:16]} 30. Re7 {[%clk 0:00:53]}  Rd8 {[%clk 0:00:17]} 31. Re3 {[%clk 0:00:51]}  c2 {[%clk 0:00:16]} 32. Rc3 {[%clk 0:00:51]}  Rxd6 {[%clk 0:00:16]} 33. Rxc2 {[%clk 0:00:52]}  h6 {[%clk 0:00:16]} 34. Nh3 {[%clk 0:00:51]}  Rd4 {[%clk 0:00:17]} 35. Rb2 {[%clk 0:00:43]}  Rb4 {[%clk 0:00:17]} 36. Rxb4 {[%clk 0:00:43]}  axb4 {[%clk 0:00:17]} 37. Nf4 {[%clk 0:00:44]}  Kf7 {[%clk 0:00:14]} 38. Kf1 {[%clk 0:00:44]}  b3 {[%clk 0:00:13]} 39. Nd3 {[%clk 0:00:44]}  Ke7 {[%clk 0:00:13]} 40. Ke2 {[%clk 0:00:44]}  Kd6 {[%clk 0:00:13]} 41. Kd2 {[%clk 0:00:45]}  b5 {[%clk 0:00:11]} 42. a5 {[%clk 0:00:44]}  c5 {[%clk 0:00:08]} 43. a6 {[%clk 0:00:44]}  c4 {[%clk 0:00:07]} 44. a7 {[%clk 0:00:43]}  cxd3 {[%clk 0:00:04]} 45. a8=Q {[%clk 0:00:44]} 1-0


[Site "https://www.chess.com"]